Workbook

Sheet I - Batch series parameters
A1: Introduction
A2: This Excel-file is for archiving data of batch sorption series that were accomplished at the IRE. For full performance, enable macros in your Excel. In general, you are asked to fill out all fields if available. Further information should be added as comments into the respective field(s). The first sheet collects as much experimental data as possible. Some entries can be selected from a list as indicated by “select” or "yes/no". Some fields will be filled automatically due to the selection. The second sheet is for results. At the top, the most relevant parameters appear again and are taken from the first sheet to get an overview. Results can be inserted into the tables provided below. Feel free to edit the layout of these tables if necessary. Raw data of batch experiments and further analytical data (spectroscopy, spectrometry, radiometry…) must be provided separately. For further information, help, etc. contact: Norbert Jordan / Harald Foerstendorf
A3: Experimentator
A4: Name: | B4: Mayordomo Herranz
A5: Given name: | B5: Natalia
A6: Department: | B6: FWOG
A7: Sorbent | B7: Select ↓
A8: Name / Trivial name (if available): | B8: γ-Alumina | C8: / | D8: and NaFEBEX
A9: Formula: | B9: Al2O3 / FEBEX is a mixture of minerals
A10: Source: | B10: synthetic / natural
A11: Characterization
A12: BET
A13: BET-Value: | B13: 136 | C13: m²/g | D13: Description/Comments/Results/File Locations
A14: Pore size distribution (yes/no): | B14: no | D14: //papers related/
A16: Zeta potential
A17: m/v: | B17: 0.5 | C17: g/L
A18: Background electrolyte: | B18: NaClO4
A19: Ionic strength(s): | B19: 0.001-0.1 | C19: M
A20: pH range: | B20: 3 to 10
A21: Atm. conditions (select): | B21: N₂
A22: ...if others, specify:
A23: pHIEP: | B23: 9 / < 3
B24: yes/no (select) | D24: Description/Comments/Results/File Locations
A25: Digestion/Element Analysis | B25: no
A27: XRD | B27: yes | D27: //papers related/
A29: Raman/IR | B29: no
A31: Mössbauer | B31: no
A33: SEM/TEM | B33: no
A35: Others (impurities, difficulties, etc.) | B35: no
A37: Overall Result/Comments | B37: yes
A39: Post-Mortem Analysis | B39: yes
A40: Element/Substance
A41: Element / substance: | B41: Cadmium | E41: ← Select
A42: Formula / chem. formula: | B42: Cd<2+> | C42: / | D42: Cd²⁺
A43: Molar mass: | B43: 112.9 | C43: g/mol
A44: Speciation: | B44: Cd<2+>
A45: Source: | B45: CdCl2/Cd(ClO4)2
A46: Supplier: | B46: Radioisotopes/Aldrich
A47: Stock Solution
A48: Concentration: | B48: 100 µ | C48: M
A49: Background electrolyte: | B49: 0.1 M HCl
A50: Ionic strength: | B50: 0 | C50: M
A51: pH: | B51: 7.5
A52: Purity verified (yes/no): | B52: yes | C52: verified by gamma counter
A53: Overall Result/Comments
A55: Batch experiments
A56: Pre-equilibration of sorbent
A57: Contact time: | B57: 0 | C57: days | D57: ← Select
A58: Temperature: | B58: 21 | C58: °C
A59: pH (range): | B59: 3.5-11
A60: Background electrolyte: | B60: NaClO4
A61: Ionic strength(s): | B61: 0.001-0.1 | C61: M
A62: Atm. conditions (select): | B62: atmosph.
A63: ...if others, specify:
A64: pCO2: | B64: 0 | C64: bar
A65: [HCO3−] added: | B65: 0 | C65: M
A66: pH edge | B66: ← Select | C66: A | D66: pH edge | E66: ← Select | F66: B | G66: pH edge | H66: ← Select | I66: C
A67: No. of parallel samples: | D67: No. of parallel samples: | G67: No. of parallel samples:
A68: Contact time (hours, days) (select): | B68: 7 | C68: days | D68: Contact time (hours, days) (select): | E68: 7 | F68: days | G68: Contact time (hours, days) (select): | H68: 7 | I68: days
A69: Conc. [Element]: | B69: 4.6e-08 | C69: M | D69: Conc. [Element]: | E69: 4.6e-08 | F69: M | G69: Conc. [Element]: | H69: 4.6e-08 | I69: M
A70: m/v: | B70: 0.5 | C70: g/L | D70: m/v: | E70: 0.5 | F70: g/L | G70: m/v: | H70: 0.5 | I70: g/L
A71: Temperature: | B71: 21 | C71: °C | D71: Temperature: | E71: 21 | F71: °C | G71: Temperature: | H71: 21 | I71: °C
A72: pH (range): | B72: 4-11 | D72: pH (range): | E72: 4-11 | G72: pH (range): | H72: 4-11
A73: Background electrolyte: | B73: NaClO4 | D73: Background electrolyte: | E73: NaClO4 | G73: Background electrolyte: | H73: NaClO4
A74: Ionic strength(s): | B74: 0.1 | C74: M | D74: Ionic strength(s): | E74: 0.01 | F74: M | G74: Ionic strength(s): | H74: 0.001 | I74: M
A75: Atm. conditions (select): | B75: atmosph. | D75: Atm. conditions (select): | E75: atmosph. | G75: Atm. conditions (select): | H75: atmosph.
A76: ...if others, specify: | B76: Cl - 1E-3M | D76: ...if others, specify: | E76: Cl - 1E-8M | G76: ...if others, specify: | H76: Cl - 0 mM
A77: pH edge | B77: ← Select | C77: D | D77: pH edge | E77: ← Select | F77: E | G77: pH edge | H77: ← Select | I77: F
A78: No. of parallel samples: | D78: No. of parallel samples: | G78: No. of parallel samples:
A79: Contact time (hours, days) (select): | B79: 7 | C79: days | D79: Contact time (hours, days) (select): | E79: 7 | F79: days | G79: Contact time (hours, days) (select): | H79: 7 | I79: days
A80: Conc. [Element]: | B80: 4.6e-08 | C80: M | D80: Conc. [Element]: | E80: 4.6e-08 | F80: M | G80: Conc. [Element]: | H80: 4.6e-08 | I80: M
A81: m/v: | B81: 0.5 | C81: g/L | D81: m/v: | E81: 0.5 | F81: g/L | G81: m/v: | H81: 0.5 | I81: g/L
A82: Temperature: | B82: 21 | C82: °C | D82: Temperature: | E82: 21 | F82: °C | G82: Temperature: | H82: 21 | I82: °C
A83: pH (range): | B83: 4-11 | D83: pH (range): | E83: 8.1 | G83: pH (range): | H83: 4.1
A84: Background electrolyte: | B84: NaClO4 | D84: Background electrolyte: | E84: NaClO4 | G84: Background electrolyte: | H84: NaClO4
A85: Ionic strength(s): | B85: 5E-4 | C85: M | D85: Ionic strength(s): | E85: 0.1 | F85: M | G85: Ionic strength(s): | H85: 0.01 | I85: M
A86: Atm. conditions (select): | B86: atmosph. | D86: Atm. conditions (select): | E86: atmosph. | G86: Atm. conditions (select): | H86: atmosph.
A87: ...if others, specify: | D87: ...if others, specify: | G87: ...if others, specify:
A88: Solid/liquid phase separation
A89: Filtration | B89: Pore size | D89: Material
C90: µm
A91: Centrifugation
A92: Centrifuge; Rotor: | B92: Centrifuge: Evolution RC; Rotor: SLA-1500, fixed-angle, 135.9 mm; max. rpm: 15,000 | G92: ← Select
A93: Temperature: | B93: 21 | C93: °C
A94: Duration: | B94: 1 | C94: h
A95: Velocity (rpm): | B95: 15000 | C95: rpm
A96: Rotor size (mm): | B96: 15 | C96: mm
A97: g forces (will be calculated): | B97: =PRODUCT(1.118,0.00001,B95,B95,(B96/10)) -> 3773.25 | C97: g
A98: Colloids | B98: Comments on colloids if available:
B99: Not evaluated
A100: Element/substance concentration in supernatant | B100: Technique
B101: gamma counter + ICP-MS
A102: Comments
B103: Buffers were used to fix pH values in the experiments. Chloride concentration in the experiments was set to 1 mM due to addition of CdCl2 stock solution in HCl
A104: Publications
B105: This data will be subjected to be published in Minerals (2023)

Sheet II - Results
A1: Sorbent
A2: Name: | B2: ='I - Batch series parameters'!B8 -> γ-Alumina
A3: Formula: | B3: ='I - Batch series parameters'!B9 -> Al2O3 / FEBEX is a mixture of minerals
A4: BET-Value: | B4: ='I - Batch series parameters'!B13 -> 136 | C4: m²/g
A5: Element/Substance
A6: Element / substance: | B6: ='I - Batch series parameters'!B41:D41 -> Cadmium
A7: Chem. formula: | B7: ='I - Batch series parameters'!D42 -> Cd²⁺
A8: Mass: | B8: ='I - Batch series parameters'!B43 -> 112.9 | C8: g/Mol
A9: Pre-equilibration of sorbent
A10: Contact time: | B10: ='I - Batch series parameters'!B57 -> 0 | C10: ='I - Batch series parameters'!C57 -> days
A11: ='I - Batch series parameters'!A66 -> pH edge | C11: A | D11: ='I - Batch series parameters'!D66 -> pH edge | F11: B | G11: ='I - Batch series parameters'!G66 -> pH edge | I11: C
A12: No. of parallel samples: | B12: ='I - Batch series parameters'!B67 -> 0 | D12: No. of parallel samples: | E12: ='I - Batch series parameters'!E67 -> 0 | G12: No. of parallel samples: | H12: ='I - Batch series parameters'!H67 -> 0
A13: Contact time: | B13: ='I - Batch series parameters'!B68 -> 7 | C13: ='I - Batch series parameters'!C68 -> days | D13: Contact time: | E13: ='I - Batch series parameters'!E68 -> 7 | F13: ='I - Batch series parameters'!F68 -> days | G13: Contact time: | H13: ='I - Batch series parameters'!H68 -> 7 | I13: ='I - Batch series parameters'!I68 -> days
A14: Conc. [Element]: | B14: ='I - Batch series parameters'!B69 -> 4.6e-08 | C14: M | D14: Conc. [Element]: | E14: ='I - Batch series parameters'!E69 -> 4.6e-08 | F14: M | G14: Conc. [Element]: | H14: ='I - Batch series parameters'!H69 -> 4.6e-08 | I14: M
A15: m/v: | B15: ='I - Batch series parameters'!B70 -> 0.5 | C15: g/L | D15: m/v: | E15: ='I - Batch series parameters'!E70 -> 0.5 | F15: g/L | G15: m/v: | H15: ='I - Batch series parameters'!H70 -> 0.5 | I15: g/L
A16: Temperature: | B16: ='I - Batch series parameters'!B71 -> 21 | C16: °C | D16: Temperature: | E16: ='I - Batch series parameters'!E71 -> 21 | F16: °C | G16: Temperature: | H16: ='I - Batch series parameters'!H71 -> 21 | I16: °C
A17: pH: | B17: ='I - Batch series parameters'!B72 -> 4-11 | D17: pH: | E17: ='I - Batch series parameters'!E72 -> 4-11 | G17: pH: | H17: ='I - Batch series parameters'!H72 -> 4-11
A18: Background electrolyte: | B18: ='I - Batch series parameters'!B73 -> NaClO4 | D18: Background electrolyte: | E18: ='I - Batch series parameters'!E73 -> NaClO4 | G18: Background electrolyte: | H18: ='I - Batch series parameters'!H73 -> NaClO4
A19: Ionic strength(s): | B19: ='I - Batch series parameters'!B74 -> 0.1 | C19: M | D19: Ionic strength(s): | E19: ='I - Batch series parameters'!E74 -> 0.01 | F19: M | G19: Ionic strength(s): | H19: ='I - Batch series parameters'!H74 -> 0.001 | I19: M
A20: Atm. conditions (N2, Ar, atm.): | B20: ='I - Batch series parameters'!B75 -> atmosph. | D20: Atm. conditions (N2, Ar, atm.): | E20: ='I - Batch series parameters'!E75 -> atmosph. | G20: Atm. conditions (N2, Ar, atm.): | H20: ='I - Batch series parameters'!H75 -> atmosph.
A21: ='I - Batch series parameters'!A77 -> pH edge | C21: D | D21: ='I - Batch series parameters'!D77 -> pH edge | F21: E | G21: ='I - Batch series parameters'!G77 -> pH edge | I21: F
A22: No. of parallel samples: | B22: ='I - Batch series parameters'!B78 -> 0 | D22: No. of parallel samples: | E22: ='I - Batch series parameters'!E78 -> 0 | G22: No. of parallel samples: | H22: ='I - Batch series parameters'!H78 -> 0
A23: Contact time: | B23: ='I - Batch series parameters'!B79 -> 7 | C23: ='I - Batch series parameters'!C79 -> days | D23: Contact time: | E23: ='I - Batch series parameters'!E79 -> 7 | F23: ='I - Batch series parameters'!F79 -> days | G23: Contact time: | H23: ='I - Batch series parameters'!H79 -> 7 | I23: ='I - Batch series parameters'!I79 -> days
A24: Conc. [Element]: | B24: ='I - Batch series parameters'!B80 -> 4.6e-08 | C24: M | D24: Conc. [Element]: | E24: ='I - Batch series parameters'!E80 -> 4.6e-08 | F24: M | G24: Conc. [Element]: | H24: ='I - Batch series parameters'!H80 -> 4.6e-08 | I24: M
A25: m/v: | B25: ='I - Batch series parameters'!B81 -> 0.5 | C25: g/L | D25: m/v: | E25: ='I - Batch series parameters'!E81 -> 0.5 | F25: g/L | G25: m/v: | H25: ='I - Batch series parameters'!H81 -> 0.5 | I25: g/L
A26: Temperature: | B26: ='I - Batch series parameters'!B82 -> 21 | C26: °C | D26: Temperature: | E26: ='I - Batch series parameters'!E82 -> 21 | F26: °C | G26: Temperature: | H26: ='I - Batch series parameters'!H82 -> 21 | I26: °C
A27: pH: | B27: ='I - Batch series parameters'!B83 -> 4-11 | D27: pH: | E27: ='I - Batch series parameters'!E83 -> 8.1 | G27: pH: | H27: ='I - Batch series parameters'!H83 -> 4.1
A28: Background electrolyte: | B28: ='I - Batch series parameters'!B84 -> NaClO4 | D28: Background electrolyte: | E28: ='I - Batch series parameters'!E84 -> NaClO4 | G28: Background electrolyte: | H28: ='I - Batch series parameters'!H84 -> NaClO4
A29: Ionic strength(s): | B29: ='I - Batch series parameters'!B85 -> 5E-4 | C29: M | D29: Ionic strength(s): | E29: ='I - Batch series parameters'!E85 -> 0.1 | F29: M | G29: Ionic strength(s): | H29: ='I - Batch series parameters'!H85 -> 0.01 | I29: M
A30: Atm. conditions (N2, Ar, atm.): | B30: ='I - Batch series parameters'!B86 -> atmosph. | D30: Atm. conditions (N2, Ar, atm.): | E30: ='I - Batch series parameters'!E86 -> atmosph. | G30: Atm. conditions (N2, Ar, atm.): | H30: ='I - Batch series parameters'!H86 -> atmosph.
A36: Data | B36: =C11 -> A | C36: 50% alumina 50% NaSmectite (in wt%)
A37: ='I - Batch series parameters'!A66 -> pH edge
A38: m/v (g/L) | B38: Ionic strength (M) | C38: [Element] initial (mol/L) | D38: [Element] initial (mol/L) | E38: [Element] supernatant (mol/L) | F38: [Element] sorbed (mol/L) | G38: % sorbed | H38: error % sorbed | I38: pH (target) | J38: pH (measured) | K38: Kd (L/g; m³/kg) | L38: Time (days)
A39: =$B$15 -> 0.5 | B39: =$B$19 -> 0.1 | C39: =$B$14 -> 4.6e-08 | D39: =$B$14 -> 4.6e-08 | E39: 2.382131649e-08 | F39: =D39-E39 -> 2.217868351e-08 | G39: =(F39*100)/D39 -> 48.21452937 | H39: 3 | I39: 6.59 | J39: 6.59 | K39: =(F39/A39)/E39 -> 1.862087137 | L39: 7
A40: 0.5 | B40: =$B$19 -> 0.1 | C40: =$B$14 -> 4.6e-08 | D40: 4.6e-08 | E40: 3.674854309e-08 | F40: =D40-E40 -> 9.251456909e-09 | G40: =(F40*100)/D40 -> 20.11186285 | H40: 3 | I40: 4.71 | J40: 4.71 | K40: =(F40/A40)/E40 -> 0.5035006088 | L40: 7
A41: 0.5 | B41: 0.1 | C41: 4.6e-08 | D41: 4.6e-08 | E41: 2.083587726e-08 | F41: 2.516412274e-08 | G41: 54.70461465 | H41: 3 | I41: 6.22 | J41: 6.22 | K41: 2.415460834 | L41: 7
A42: 0.5 | B42: 0.1 | C42: 4.6e-08 | D42: 4.6e-08 | E42: 3.069019516e-08 | F42: 1.530980484e-08 | G42: 33.28218443 | H42: 3 | I42: 5.72 | J42: 5.72 | K42: 0.9977000638 | L42: 7
A43: 0.5 | B43: 0.1 | C43: 4.6e-08 | D43: 4.6e-08 | E43: 2.397995061e-08 | F43: 2.202004939e-08 | G43: 47.86967258 | H43: 3 | I43: 6.01 | J43: 6.01 | K43: 1.836538343 | L43: 7
A44: 0.5 | B44: 0.1 | C44: 4.6e-08 | D44: 4.6e-08 | E44: 2.120383756e-08 | F44: 2.479616244e-08 | G44: 53.90470096 | H44: 3 | I44: 6.5 | J44: 6.5 | K44: 2.338837239 | L44: 7
A45: 0.5 | B45: 0.1 | C45: 4.6e-08 | D45: 4.6e-08 | E45: 1.316383489e-08 | F45: =D45-E45 -> 3.283616511e-08 | G45: =(F45*100)/D45 -> 71.38296763 | H45: 4 | I45: 7.02 | J45: 7.02 | K45: =(F45/A45)/E45 -> 4.988844875 | L45: 8
A46: 0.5 | B46: 0.1 | C46: 4.6e-08 | D46: 4.6e-08 | E46: 7.054789381e-09 | F46: 3.894521062e-08 | G46: 84.66350135 | H46: 5 | I46: 7.5 | J46: 7.5 | K46: 11.0407862 | L46: 9
A47: 0.5 | B47: 0.1 | C47: 4.6e-08 | D47: 4.6e-08 | E47: 4.18208076e-09 | F47: 4.181791924e-08 | G47: 90.90852009 | H47: 6 | I47: 8.05 | J47: 8.05 | K47: 19.9986187 | L47: 10
A48: 0.5 | B48: 0.1 | C48: 4.6e-08 | D48: 4.6e-08 | E48: 3.385244179e-09 | F48: 4.261475582e-08 | G48: 92.64077352 | H48: 7 | I48: 8.63 | J48: 8.63 | K48: 25.17676928 | L48: 11
A49: 0.5 | B49: 0.1 | C49: 4.6e-08 | D49: 4.6e-08 | E49: 1.31284279e-09 | F49: 4.468715721e-08 | G49: 97.14599393 | H49: 8 | I49: 9.2 | J49: 9.2 | K49: 68.07693587 | L49: 12
A50: 0.5 | B50: 0.1 | C50: 4.6e-08 | D50: 4.6e-08 | E50: 6.750980736e-10 | F50: 4.532490193e-08 | G50: 98.53239549 | H50: 9 | I50: 10.03 | J50: 10.03 | K50: 134.2764961 | L50: 13
A51: 0.5 | B51: 0.1 | C51: 4.6e-08 | D51: 4.6e-08 | E51: 4.190843134e-09 | F51: 4.180915687e-08 | G51: 90.88947145 | H51: 10 | I51: 8 | J51: 8 | K51: 19.95262315 | L51: 14
A58: Data | B58: =F11 -> B | C58: 50% alumina 50% NaSmectite (in wt%)
A59: ='I - Batch series parameters'!D66 -> pH edge
A60: m/v (g/L) | B60: Ionic strength (M) | C60: [Element] initial (mol/L) | D60: [Element] initial (mol/L) | E60: [Element] supernatant (mol/L) | F60: [Element] sorbed (mol/L) | G60: % sorbed | H60: error % sorbed | I60: pH (target) | J60: pH (measured) | K60: Kd (L/g or m³/kg) | L60: Time (days)
A61: =$E$15 -> 0.5 | B61: =$E$19 -> 0.01 | C61: =$E$14 -> 4.6e-08 | D61: =$E$14 -> 4.6e-08 | E61: 3.860963768e-08 | F61: =D61-E61 -> 7.390362318e-09 | G61: =F61*100/D61 -> 16.06600504 | H61: 3 | I61: 2.94 | J61: 2.94 | K61: =(F61/A61)/E61 -> 0.3828247433 | L61: 7
A62: =$E$15 -> 0.5 | B62: =$E$19 -> 0.01 | C62: =$E$14 -> 4.6e-08 | D62: 4.6e-08 | E62: 3.800511752e-08 | F62: =D62-E62 -> 7.994882478e-09 | G62: =F62*100/D62 -> 17.3801793 | H62: 3 | I62: 3.53 | J62: 3.53 | K62: 0.4207266284 | L62: 7
A63: 0.5 | B63: 0.01 | C63: 4.6e-08 | D63: 4.6e-08 | E63: 1.50069937e-08 | F63: 3.09930063e-08 | G63: 67.37610065 | H63: 3 | I63: 4.66 | J63: 4.66 | K63: 4.13047502 | L63: 7
A64: 0.5 | B64: 0.01 | C64: 4.6e-08 | D64: 4.6e-08 | E64: 3.662325922e-09 | F64: 4.233767408e-08 | G64: 92.03842191 | H64: 3 | I64: 6.4 | J64: 6.4 | K64: 23.1206479 | L64: 7
A65: 0.5 | B65: 0.01 | C65: 4.6e-08 | D65: 4.6e-08 | E65: 3.968320492e-09 | F65: 4.203167951e-08 | G65: 91.37321632 | H65: 3 | I65: 7.67 | J65: 7.67 | K65: 21.18361135 | L65: 7
A66: 0.5 | B66: 0.01 | C66: 4.6e-08 | D66: 4.6e-08 | E66: 3.406971616e-09 | F66: =D66-E66 -> 4.259302838e-08 | G66: =F66*100/D66 -> 92.59353997 | H66: 3 | I66: 8.07 | J66: 8.07 | K66: =(F66/A66)/E66 -> 25.00345362 | L66: 8
A67: 0.5 | B67: 0.01 | C67: 4.6e-08 | D67: 4.6e-08 | E67: 2.462953768e-10 | F67: 4.575370462e-08 | G67: 99.46457527 | H67: 3 | I67: 9.53 | J67: 9.53 | K67: 371.5352291 | L67: 9
A68: 0.5 | B68: 0.01 | C68: 4.6e-08 | D68: 4.6e-08 | E68: 1.280922435e-09 | F68: 4.471907756e-08 | G68: 97.21538601 | H68: 3 | I68: 9.03 | J68: 9.03 | K68: 69.82324041 | L68: 10
A69: 0.5 | B69: 0.01 | C69: 4.6e-08 | D69: 4.6e-08 | E69: 5.678731783e-11 | F69: =D69-E69 -> 4.594321268e-08 | G69: =F69*100/D69 -> 99.87654931 | H69: 3 | I69: 10.68 | J69: 10.68 | K69: =(F69/A69)/E69 -> 1618.080038 | L69: 11
A70: 0.5 | B70: 0.01 | C70: 4.6e-08 | D70: 4.6e-08 | E70: 1.538185873e-08 | F70: 3.061814127e-08 | G70: 66.56117668 | H70: 3 | I70: 4.5 | J70: 4.5 | K70: 3.981071706 | L70: 12
A71: 0.5 | B71: 0.01 | C71: 4.6e-08 | D71: 4.6e-08 | E71: 3.933566918e-08 | F71: 6.664330815e-09 | G71: 14.48767569 | H71: 3 | I71: 4.1 | J71: 4.1 | K71: 0.3388441561 | L71: 13
A78: Data | B78: =I11 -> C | C78: 50% alumina 50% NaSmectite (in wt%)
A79: ='I - Batch series parameters'!A77 -> pH edge
A80: m/v (g/L) | B80: Ionic strength (M) | C80: [Element] initial (mol/L) | D80: [Element] initial (mol/L) | E80: [Element] supernatant (mol/L) | F80: [Element] sorbed (mol/L) | G80: % sorbed | H80: error % sorbed | I80: pH (target) | J80: pH (measured) | K80: Kd (L/g or m³/kg) | L80: Time (days)
A81: =$B$25 -> 0.5 | B81: =$H$19 -> 0.001 | C81: =$H$14 -> 4.6e-08 | D81: =C81 -> 4.6e-08 | E81: 4.57181238e-08 | F81: =C81-E81 -> 2.818761971e-10 | G81: =F81*100/D81 -> 0.6127743416 | H81: 3 | I81: 2.64 | J81: 2.64 | K81: =(F81/A81)/E81 -> 0.01233104833 | L81: 7
A82: =$B$25 -> 0.5 | B82: =$H$19 -> 0.001 | C82: =$H$14 -> 4.6e-08 | D82: =C82 -> 4.6e-08 | E82: 4.431529581e-08 | F82: =C82-E82 -> 1.684704194e-09 | G82: =F82*100/D82 -> 3.662400421 | H82: 3 | I82: 3.6 | J82: 3.6 | K82: 0.07603262769 | L82: 7
A83: 0.5 | B83: 0.001 | C83: 4.6e-08 | D83: 4.6e-08 | E83: 3.532533946e-09 | F83: 4.246746605e-08 | G83: 92.32057838 | H83: 3 | I83: 4.44 | J83: 4.44 | K83: 24.043628 | L83: 7
A84: 0.5 | B84: 0.001 | C84: 4.6e-08 | D84: 4.6e-08 | E84: 9.060420442e-10 | F84: 4.509395796e-08 | G84: 98.03034338 | H84: 3 | I84: 5.75 | J84: 5.75 | K84: 99.54054174 | L84: 7
A85: 0.5 | B85: 0.001 | C85: 4.6e-08 | D85: 4.6e-08 | E85: 5.527611333e-10 | F85: 4.544723887e-08 | G85: 98.79834536 | H85: 3 | I85: 6.15 | J85: 6.15 | K85: 164.4371723 | L85: 7
A86: 0.5 | B86: 0.001 | C86: 4.6e-08 | D86: 4.6e-08 | E86: 3.972111206e-10 | F86: 4.560278888e-08 | G86: 99.13649756 | H86: 3 | I86: 8.87 | J86: 8.87 | K86: 229.6148648 | L86: 7
A87: 0.5 | B87: 0.001 | C87: 4.6e-08 | D87: 4.6e-08 | E87: 4.119843176e-10 | F87: 4.558801568e-08 | G87: 99.10438192 | H87: 3 | I87: 7.26 | J87: 7.26 | K87: 221.309471 | L87: 7
A88: 0.5 | B88: 0.001 | C88: 4.6e-08 | D88: 4.6e-08 | E88: 1.342530335e-09 | F88: 4.465746966e-08 | G88: 97.08145579 | H88: 3 | I88: 10.04 | J88: 10.04 | K88: 66.52731562 | L88: 7
A98: Data | B98: =C21 -> D | C98: 50% alumina 50% NaSmectite (in wt%)
A99: ='I - Batch series parameters'!G66 -> pH edge
A100: m/v (g/L) | B100: Ionic strength (M) | C100: [Element] initial (mol/L) | D100: [Element] initial (mol/L) | E100: [Element] supernatant (mol/L) | F100: [Element] sorbed (mol/L) | G100: % sorbed | H100: error % sorbed | I100: pH (target) | J100: pH (measured) | K100: Kd (L/g or m³/kg) | L100: Time (days)
A101: =$H$15 -> 0.5 | B101: =$H$19 -> 0.001 | C101: =$B$24 -> 4.6e-08 | D101: =C101 -> 4.6e-08 | E101: 3.875135407e-08 | F101: =D101-E101 -> 7.248645933e-09 | G101: =F101*100/D101 -> 15.75792594 | H101: 3 | I101: 2.98 | J101: 2.98 | K101: =(F101/A101)/E101 -> 0.3741105883 | L101: 7
A102: =$H$15 -> 0.5 | B102: =$H$19 -> 0.001 | C102: =$B$24 -> 4.6e-08 | D102: =C102 -> 4.6e-08 | E102: 3.828998533e-08 | F102: =D102-E102 -> 7.710014669e-09 | G102: =F102*100/D102 -> 16.76090145 | H102: 3 | I102: 3.6 | J102: 3.6 | K102: 0.4027170343 | L102: 7
A103: 0.5 | B103: 0.001 | C103: 4.6e-08 | D103: 4.6e-08 | E103: 1.882108865e-09 | F103: 4.411789113e-08 | G103: 95.90845899 | H103: 3 | I103: 4.39 | J103: 4.39 | K103: 46.88133821 | L103: 7
A104: 0.5 | B104: 0.001 | C104: 4.6e-08 | D104: 4.6e-08 | E104: 5.65478316e-10 | F104: 4.543452168e-08 | G104: 98.77069931 | H104: 3 | I104: 6.49 | J104: 6.49 | K104: 160.6941253 | L104: 7
A105: 0.5 | B105: 0.001 | C105: 4.6e-08 | D105: 4.6e-08 | E105: 6.349671034e-10 | F105: 4.53650329e-08 | G105: 98.61963673 | H105: 3 | I105: 8.33 | J105: 8.33 | K105: 142.8893959 | L105: 7
A106: 0.5 | B106: 0.001 | C106: 4.6e-08 | D106: 4.6e-08 | E106: 6.843499036e-10 | F106: 4.53156501e-08 | G106: 98.51228282 | H106: 3 | I106: 7.65 | J106: 7.65 | K106: 132.4341535 | L106: 7
A107: 0.5 | B107: 0.001 | C107: 4.6e-08 | D107: 4.6e-08 | E107: 9.225487985e-10 | F107: 4.50774512e-08 | G107: 97.99445913 | H107: 3 | I107: 8.93 | J107: 8.93 | K107: 97.7237221 | L107: 7
A108: 0.5 | B108: 0.001 | C108: 4.6e-08 | D108: 4.6e-08 | E108: 1.200341171e-09 | F108: 4.479965883e-08 | G108: 97.39056267 | H108: 3 | I108: 9.89 | J108: 9.89 | K108: 74.64487584 | L108: 7
A109: 0.5 | B109: 0.001 | C109: 4.6e-08 | D109: =C109 -> 4.6e-08 | E109: 9.607732902e-10 | F109: 4.503922671e-08 | G109: =F109*100/D109 -> 97.91136241 | H109: 3 | I109: 5.13 | J109: 5.13 | K109: =(F109/A109)/E109 -> 93.75620069 | L109: 7
A110: 0.5 | B110: 0.001 | C110: 4.6e-08 | D110: 4.6e-08 | E110: 7.193539135e-10 | F110: 4.528064609e-08 | G110: 98.43618714 | H110: 3 | I110: 10.7 | J110: 10.7 | K110: 125.8925412 | L110: 7
A115: Data | B115: E
A116: Effect of mixture composition
A117: m/v (g/L) | B117: Ionic strength (M) | C117: [Element] initial (mol/L) | D117: [Element] initial (mol/L) | E117: [Element] supernatant (mol/L) | F117: [Element] sorbed (mol/L) | G117: % sorbed | H117: error % sorbed | I117: pH (target) | J117: pH (measured) | K117: Kd (L/g or m³/kg) | L117: Time (days) | M117: % alumina
A118: =$H$15 -> 0.5 | B118: =$H$19 -> 0.001 | C118: =$B$24 -> 4.6e-08 | D118: =C118 -> 4.6e-08 | E118: 2.078303e-09 | F118: =D118-E118 -> 4.3921697e-08 | G118: =F118*100/D118 -> 95.48195 | H118: 3 | I118: 8.1 | J118: 8.1 | K118: =(F118/A118)/E118 -> 42.26688505 | L118: 7 | M118: 100
A119: =$H$15 -> 0.5 | B119: =$H$19 -> 0.001 | C119: =$B$24 -> 4.6e-08 | D119: =C119 -> 4.6e-08 | E119: 1.3667474e-09 | F119: =D119-E119 -> 4.46332526e-08 | G119: =F119*100/D119 -> 97.02881 | H119: 3 | I119: 8.1 | J119: 8.1 | K119: 65.31309677 | L119: 7 | M119: 94.91525
A120: 0.5 | B120: 0.001 | C120: 4.6e-08 | D120: 4.6e-08 | E120: 1.6886692e-09 | F120: 4.43113308e-08 | G120: 96.32898 | H120: 3 | I120: 8.1 | J120: 8.1 | K120: 52.48077101 | L120: 7 | M120: 79.7153
A121: 0.5 | B121: 0.001 | C121: 4.6e-08 | D121: 4.6e-08 | E121: 1.769114e-09 | F121: 4.4230886e-08 | G121: 96.1541 | H121: 3 | I121: 8.1 | J121: 8.1 | K121: 50.00343223 | L121: 7 | M121: 69.627
A122: 0.5 | B122: 0.001 | C122: 4.6e-08 | D122: 4.6e-08 | E122: 2.4922754e-09 | F122: 4.35077246e-08 | G122: 94.58201 | H122: 3 | I122: 8.1 | J122: 8.1 | K122: 34.91405853 | L122: 7 | M122: 39.57597
A123: 0.5 | B123: 0.001 | C123: 4.6e-08 | D123: 4.6e-08 | E123: 3.4508096e-09 | F123: 4.25491904e-08 | G123: 92.49824 | H123: 3 | I123: 8.1 | J123: 8.1 | K123: 24.66041036 | L123: 7 | M123: 19.71831
A124: 0.5 | B124: 0.001 | C124: 4.6e-08 | D124: 4.6e-08 | E124: 3.6856764e-09 | F124: 4.23143236e-08 | G124: 91.98766 | H124: 3 | I124: 8.1 | J124: 8.1 | K124: 22.96149689 | L124: 7 | M124: 9.84183
A125: 0.5 | B125: 0.001 | C125: 4.6e-08 | D125: 4.6e-08 | E125: 5.6823202e-09 | F125: 4.03176798e-08 | G125: 87.64713 | H125: 3 | I125: 8.1 | J125: 8.1 | K125: 14.19056948 | L125: 7 | M125: 0
A126: 0.5 | B126: 0.001 | C126: 4.6e-08 | D126: 4.6e-08 | E126: 4.1820808e-09 | F126: 4.18179192e-08 | G126: 90.90852 | H126: 3 | I126: 8.1 | J126: 8.1 | K126: 19.99861849 | L126: 7 | M126: 50
A131: Data | B131: F
A132: Effect of mixture composition
A133: m/v (g/L) | B133: Ionic strength (M) | C133: [Element] initial (mol/L) | D133: [Element] initial (mol/L) | E133: [Element] supernatant (mol/L) | F133: [Element] sorbed (mol/L) | G133: % sorbed | H133: error % sorbed | I133: pH (target) | J133: pH (measured) | K133: Kd (L/g or m³/kg) | L133: Time (days) | M133: % alumina
A134: =$H$15 -> 0.5 | B134: =$H$19 -> 0.001 | C134: =$B$24 -> 4.6e-08 | D134: =C134 -> 4.6e-08 | E134: 4.2430193e-08 | F134: =D134-E134 -> 3.569807e-09 | G134: =F134*100/D134 -> 7.76045 | H134: 3 | I134: 4.3 | J134: 4.3 | K134: =(F134/A134)/E134 -> 0.1682672997 | L134: 7 | M134: 100
A135: =$H$15 -> 0.5 | B135: =$H$19 -> 0.001 | C135: =$B$24 -> 4.6e-08 | D135: =C135 -> 4.6e-08 | E135: 4.29128526e-08 | F135: =D135-E135 -> 3.0871474e-09 | G135: =F135*100/D135 -> 6.71119 | H135: 3 | I135: 4.3 | J135: 4.3 | K135: 0.1438798501 | L135: 7 | M135: 95
A136: 0.5 | B136: 0.001 | C136: 4.6e-08 | D136: 4.6e-08 | E136: 4.27008202e-08 | F136: 3.2991798e-09 | G136: 7.17213 | H136: 3 | I136: 4.3 | J136: 4.3 | K136: 0.1545253597 | L136: 7 | M136: 80
A137: 0.5 | B137: 0.001 | C137: 4.6e-08 | D137: 4.6e-08 | E137: 4.23997456e-08 | F137: 3.6002544e-09 | G137: 7.82664 | H137: 3 | I137: 4.3 | J137: 4.3 | K137: 0.1698243397 | L137: 7 | M137: 70
A138: 0.5 | B138: 0.001 | C138: 4.6e-08 | D138: 4.6e-08 | E138: 3.93356672e-08 | F138: 6.6643328e-09 | G138: 14.48768 | H138: 3 | I138: 4.3 | J138: 4.3 | K138: 0.3388442741 | L138: 7 | M138: 50
A139: 0.5 | B139: 0.001 | C139: 4.6e-08 | D139: 4.6e-08 | E139: 3.9781927e-08 | F139: 6.218073e-09 | G139: 13.51755 | H139: 3 | I139: 4.3 | J139: 4.3 | K139: 0.3126079337 | L139: 7 | M139: 40
A140: 0.5 | B140: 0.001 | C140: 4.6e-08 | D140: 4.6e-08 | E140: 2.53492706e-08 | F140: 2.06507294e-08 | G140: 44.89289 | H140: 3 | I140: 4.3 | J140: 4.3 | K140: 1.629295748 | L140: 7 | M140: 20
A141: 0.5 | B141: 0.001 | C141: 4.6e-08 | D141: 4.6e-08 | E141: 1.50769232e-08 | F141: 3.09230768e-08 | G141: 67.22408 | H141: 3 | I141: 4.3 | J141: 4.3 | K141: 4.102040767 | L141: 7 | M141: 10
A142: 0.5 | B142: 0.001 | C142: 4.6e-08 | D142: 4.6e-08 | E142: 1.0408282e-08 | F142: 3.5591718e-08 | G142: 77.3733 | H142: 3 | I142: 4.3 | J142: 4.3 | K142: 6.839114851 | L142: 7 | M142: 0
A143: 0.5 | B143: 0.001 | C143: 4.6e-08 | D143: 4.6e-08 | E143: 7.82e-09 | F143: 3.818e-08 | G143: 83 | H143: 3 | I143: 4.3 | J143: 4.3 | K143: 9.764705882 | L143: 7 | M143: 0
A144: 0.5 | B144: 0.001 | C144: 4.6e-08 | D144: 4.6e-08 | E144: 8.4916e-09 | F144: 3.75084e-08 | G144: 81.54 | H144: 3 | I144: 4.3 | J144: 4.3 | K144: 8.834236186 | L144: 7 | M144: 0
A145: 0.5 | B145: 0.001 | C145: 4.6e-08 | D145: 4.6e-08 | E145: 9.959e-09 | F145: 3.6041e-08 | G145: 78.35 | H145: 3 | I145: 4.3 | J145: 4.3 | K145: 7.237875289 | L145: 7 | M145: 0
A146: 0.5 | B146: 0.001 | C146: 4.6e-08 | D146: 4.6e-08 | E146: 7.5946e-09 | F146: 3.84054e-08 | G146: 83.49 | H146: 3 | I146: 4.3 | J146: 4.3 | K146: 10.11387038 | L146: 7 | M146: 0
A147: 0.5 | B147: 0.001 | C147: 4.6e-08 | D147: 4.6e-08 | E147: 8.855e-09 | F147: 3.7145e-08 | G147: 80.75 | H147: 3 | I147: 4.3 | J147: 4.3 | K147: 8.38961039 | L147: 7 | M147: 0

Sheet Mins&Ligs
B1: acidic aluminium oxide | C1: ‒ | D1: γ-Al₂O₃ | F1: 1-hydroxyethane-1,1diphosphonic acid | G1: HEDP<4-> | H1: C₂H₄O₇P₂⁴⁻ | J1: hrs | K1: atmosph. | L1: yes | M1: — | N1: Centrifuge: Avanti J-20XP; Rotor: JA 25.50, fixed-angle, 108 mm; max. rpm: 25,000
B2: Akaganeite | C2: ‒ | D2: β-FeOOH | F2: 2,2´-bipyridine | G2: bipy<0> | H2: C₁₀H₈N₂ | J2: days | K2: N₂ | L2: no | M2: Isotherm | N2: Centrifuge: Avanti J-20XP; Rotor: JS 13.1, swing-out, 140 mm; max. rpm: 13,000
B3: Al(OH)₃ amorph. | C3: HAO | D3: Al(OH)₃ | F3: 2,3-pyrazinedicarboxylate | G3: PDCA<2-> | H3: C₇H₃NO₄²⁻ | J3: weeks | K3: Ar | M3: Time dependent | N3: Centrifuge: Avanti J-20XP; Rotor: JS 4.0, swing-out, 226 mm; max. rpm: 4,000
B4: Albite | C4: Na-Feldspars | D4: NaAlSi₃O₈ | F4: 2-aminopyridine | G4: 2-AP<0> | H4: NH₂C₅H₄N | K4: others | M4: pH edge | N4: Centrifuge: Avanti J-20XP; Rotor: JS 5.3, swing-out, 194.8 mm; max. rpm: 5,300
B5: Al-Goethite | C5: ‒ | D5: α-[Fe,Al]OOH | F5: 2-Ketogluconate | G5: kG<0> | H5: C₆H₉O₇ | N5: Centrifuge: EBA 12 + 21; Rotor: Nr. 1116, fixed-angle, 95 mm; max. rpm: 6,000
B6: Almandine | C6: ‒ | D6: Fe₃Al₂(SiO₄)₃ | F6: 3-amino-1,2,4-triazole | G6: ATA<0> | H6: C₂H₄N₄ | N6: Centrifuge: EBA 280; Rotor: Nr. 1137, fixed-angle, 95 mm; max. rpm: 6,000
B7: γ-Alumina | C7: ‒ | D7: γ-Al₂O₃ | F7: 3-aminopyridine | G7: 3-AP<0> | H7: NH₂C₅H₄N | N7: Centrifuge: Evolution RC; Rotor: HB-6, swing-out, 146.3 mm; max. rpm: 13,000
B8: δ-Alumina | C8: ‒ | D8: δ-Al₂O₃ | F8: 4-aminopyridine | G8: 4-AP<0> | H8: NH₂C₅H₄N | N8: Centrifuge: Evolution RC; Rotor: SA-300, fixed-angle, 97 mm; max. rpm: 25,000
B9: transition alumina | C9: ‒ | D9: γ-δ/Al₂O₃ | F9: 8-aminoquinoline | G9: AQ<0> | H9: C₉H₈N₂ | N9: Centrifuge: Evolution RC; Rotor: SLA-1500, fixed-angle, 135.9 mm; max. rpm: 15,000
B10: Anatase | C10: ‒ | D10: TiO₂ | F10: 8-aminoquinoline | G10: AQ<0> | N10: Centrifuge: Evolution RC; Rotor: SS-34, fixed-angle, 107 mm; max. rpm: 25,000
B11: Andalusite | C11: ‒ | D11: Al₂SiO₅ | F11: acetate | G11: ac<1-> | H11: C₂H₃O₂⁻ | N11: Centrifuge: Optima XPN-80; Rotor: 90 Ti, fixed-angle, 76.5 mm; max. rpm: 45,000
B12: Anorthite | C12: ‒ | D12: CaAl₂Si₂O₈ | F12: actinium | G12: Ac<3+> | H12: Ac³⁺ | N12: Centrifuge: Optima XPN-80; Rotor: SW 32 Ti, swing-out, 152.5 mm; max. rpm: 32,000
B13: Anthophyllite | C13: ‒ | D13: Mg₇Si₈O₂₂(OH)₂ | F13: aluminum | G13: Al<3+> | H13: Al³⁺ | N13: Centrifuge: Optima XPN-80; Rotor: SW 32.1 Ti, swing-out, 162.8 mm; max. rpm: 32,000
B14: Apatite | C14: ‒ | D14: Ca₅(PO₄)₃(OH,F,Cl) | F14: americium | G14: Am<3+> | H14: Am³⁺ | N14: Centrifuge: Optima XPN-80; Rotor: SW 40 Ti, swing-out, 158.8 mm; max. rpm: 4,0000
B15: Aragonite | C15: ‒ | D15: CaCO₃ | F15: aminonaphthalene | G15: AN<0> | H15: C₁₀H₇NH₂ | N15: Centrifuge: Sigma 3 K18; Rotor: Nr. 111 33, swing-out, 153 mm; max. rpm: 5,500
B16: Augite | C16: ‒ | D16: (Ca,Na)(Mg,Fe,Al,Ti)(Si,Al)₂O₆ | F16: ammonium | G16: NH4<+> | H16: NH₄⁺ | N16: Centrifuge: Sigma 3-30; Rotor: 12158-H, swing-out, 79 mm; max. rpm: 18,000
B17: Baddeleyite | C17: Zircondioxide | D17: ZrO₂ | F17: aniline | G17: anil<0> | H17: C₂H₅NH₂ | N17: Centrifuge: Sigma 3-30; Rotor: 19776-H, fixed-angle, 79 mm; max. rpm: 14,000
B18: Bayerite | C18: ‒ | D18: α-Al(OH)₃ | F18: anion of alpha-alanine | G18: ala(a)<1-> | H18: C₃H₆NO₂⁻
B19: Beidellite | C19: ‒ | D19: Na₀.₃₃Al₂.₃₃Si₃.₆₇O₁₀(OH)₂ | F19: anion of beta-alanine | G19: ala(b)<1-> | H19: C₃H₆NO₂⁻
B20: Bentonite | C20: ‒ | D20: Na₀.₃₃Mg₀.₃₃Al₁.₆₇Si₄O₁₀(OH)₂ | F20: anthracene | G20: anth<0> | H20: C₁₄H₁₀
B21: Berlinite | C21: ‒ | D21: AlPO₄ | F21: arsenate | G21: AsO4<3-> | H21: AsO₄³⁻
B22: Biotite | C22: ‒ | D22: K(Mg,Fe⁺³)₃AlSi₃O₁₀(OH)₂ | F22: arsenite | G22: AsO3<3-> | H22: AsO₃³⁻
B23: Birnessite | C23: ‒ | D23: (Na,Ca,K)(Mn⁺⁴,Mn⁺³)₂O₄·1.5H₂O | F23: barium | G23: Ba<2+> | H23: Ba²⁺
B24: Boehmite | C24: ‒ | D24: γ-AlOOH | F24: benzoate | G24: benz<1-> | H24: C₇H₅O₂⁻
B25: Bromellite | C25: Berylliumoxide | D25: BeO | F25: beryllium | G25: Be<2+> | H25: Be²⁺
B26: Brucite | C26: Nemalite | D26: Mg(OH)₂ | F26: boric acid | G26: B(OH)3<0> | H26: B(OH)₃
B27: Bunsenite | C27: Nickeloxide | D27: NiO | F27: bromide | G27: Br<1-> | H27: Br⁻
B28: Bytownite | C28: ‒ | D28: (Ca,Na)(Si,Al)₄O₈ | F28: cadmium | G28: Cd<2+> | H28: Cd²⁺
B29: Calcite | C29: ‒ | D29: CaCO₃ | F29: calcium | G29: Ca<2+> | H29: Ca²⁺
B30: Calciumoxide | C30: Calcia | D30: CaO | F30: carbonate | G30: CO3<2-> | H30: CO₃²⁻
B31: Carbonate-fluoroapatite | C31: Francolite | D31: Ca₅(PO₄)₂.₅(CO₃)₀.₅F | F31: catecholate | G31: cat<2-> | H31: C₆H₄O₂²⁻
B32: Cassiterite | C32: Tin Ore, Wood Tin | D32: SnO₂ | F32: cesium | G32: Cs<1+> | H32: Cs⁺
B33: Celadonite | C33: ‒ | D33: KAlMgSi₄O₁₀(OH)₂ | F33: chloraniline | G33: Cl-anil<0> | H33: C₆H₄ClNH₂
B34: Cerussite | C34: White Lead Ore | D34: PbCO₃ | F34: chloride | G34: Cl<1-> | H34: Cl⁻
B35: Chabazite | C35: Acadialite, Adipite | D35: CaAl₂Si₄O₁₂·6H₂O | F35: chromate | G35: CrO4<2-> | H35: CrO₄²⁻
B36: Chalcocite | C36: ‒ | D36: Cu₂S | F36: chromium(III) | G36: Cr<3+> | H36: Cr³⁺
B37: Chlinochrysotile | C37: Serpentine, Asbestos, Deweylite | D37: Mg₃Si₂O₅(OH)₄ | F37: citrate | G37: cit<3-> | H37: C₆H₅O₇³⁻
B38: Chlorite | C38: Tosudite | D38: (Fe,Mg)₅Al₂Si₃O₁₀(OH)₈ | F38: cobalt(II) | G38: Co<2+> | H38: Co²⁺
B39: Chromite | C39: ‒ | D39: FeCr₂O₄ | F39: cobalt(III) | G39: Co<3+> | H39: Co³⁺
B40: Cinnabar | C40: ‒ | D40: HgS | F40: copper | G40: Cu<2+> | H40: Cu²⁺
B41: Clinoptilolite | C41: ‒ | D41: (Na,K,Cs,NH₄,Ca₀.₅,Sr₀.₅)₃.₄₆₇Al₃.₄₅(Fe⁺³)₀.₀₁₇Si₁₃O₃₆·12H₂O | F41: curium | G41: Cm<3+> | H41: Cm³⁺
B42: Corundum | C42: a-Alumina | D42: α-Al₂O₃ | F42: cyanate | G42: OCN<1-> | H42: OCN⁻
B43: Cristobalite | C43: ‒ | D43: SiO₂ | F43: cyanide | G43: CN<1-> | H43: CN⁻
B44: Cryptomelane | C44: ‒ | D44: K(Mn⁴⁺₆Mn³⁺₂)O₁₆ | F44: dodecylaminion | G44: RNH3<1+> | H44: C₁₂H₂₅NH₃⁺
B45: Diaspore | C45: ‒ | D45: α-AlOOH | F45: dodecylsulfation | G45: RSO3<1-> | H45: C₁₂H₂₅SO₃⁻
B46: Diopside | C46: ‒ | D46: CaMgSi₂O₆ | F46: ethylendiamine (1,2-ethanediamine) | G46: en<0> | H46: C₂H₄(NH₂)₂
B47: Dolomite | C47: ‒ | D47: CaMg(CO₃)₂ | F47: ethylenediaminetetraacetate | G47: EDTA<4-> | H47: C₁₀H₁₂N₂O₈⁴⁻
B48: Enstatite | C48: ‒ | D48: Mg₂Si₂O₆ | F48: europium(II) | G48: Eu<2+> | H48: Eu²⁺
B49: Epidote | C49: ‒ | D49: Ca₂(Fe,Al)Al₂(SiO₄)₃(OH) | F49: europium(III) | G49: Eu<3+> | H49: Eu³⁺
B50: Eskolaite | C50: Chromia | D50: Cr₂O₃ | F50: fluoride | G50: F<1-> | H50: F⁻
B51: Ettringite | C51: ‒ | D51: Ca₆Al₂[(OH)₁₂|(SO₄)₃]·26H₂O | F51: gadolinium | G51: Gd<3+> | H51: Gd³⁺
B52: Fayalite | C52: ‒ | D52: Fe₂SiO₄ | F52: gallium | G52: Ga<3+> | H52: Ga³⁺
B53: Ferrihydrite | C53: HFO - Hydrous Ferric Oxide | D53: Fe₂O₃·nH₂O | F53: gamma-aminobutyrate | G53: GABA<1-> | H53: C₄H₉NO₂⁻
B54: Fluorapatite | C54: ‒ | D54: Ca₅(PO₄)₃F | F54: glutamate | G54: glut<2-> | H54: C₅H₅NO₄⁻
B55: Fluorite | C55: Fluor Spar | D55: CaF₂ | F55: glycinate | G55: gly<1-> | H55: C₂H₄NO₂⁻
B56: Forsterite | C56: ‒ | D56: Mg₂SiO₄ | F56: gold | G56: Au<3+> | H56: Au³⁺
B57: Galena | C57: ‒ | D57: PbS | F57: hemimellitate (benzene-1,2,3-tricarboxylic acid) | G57: hem<3-> | H57: C₉H₃O₆³⁻
B58: Gibbsite | C58: Hydrargillite | D58: γ-Al(OH)₃ | F58: Hydrogen selenide | G58: HSe<1-> | H58: HSe⁻
B59: Glauconite | C59: ‒ | D59: (K,Na)(Fe⁺³,Al,Mg)₂(Si,Al)₄O₁₀(OH)₂ | F59: hydrogensulfid | G59: HS<1-> | H59: HS⁻
B60: Goethite | C60: ‒ | D60: α-FeOOH | F60: hydronium | G60: H<1+> | H60: H⁺
B61: Grossular | C61: ‒ | D61: Ca₃Al₂(SiO₄)₃ | F61: hydroxoantimonate(V) | G61: Sb(OH)6<1-> | H61: Sb(OH)₆⁻
B62: Groutite | C62: ‒ | D62: α-MnO(OH) | F62: hydroxyde | G62: OH<1-> | H62: OH⁻
B63: Gypsum | C63: ‒ | D63: CaSO₄·2H₂O | F63: indium | G63: In<3+> | H63: In³⁺
B64: Hausmannite | C64: ‒ | D64: Mn⁺²(Mn⁺³)₂O₄ | F64: iodate | G64: IO3<1-> | H64: IO₃⁻
B65: Hectorite | C65: ‒ | D65: Na₀.₃₃(Mg,Li)₃Si₄O₁₀(OH)₂ | F65: iodide | G65: I<1-> | H65: I⁻
B66: Hedenbergite | C66: ‒ | D66: CaFeSi₂O₆ | F66: iron(II) | G66: Fe<2+> | H66: Fe²⁺
B67: Hematite | C67: Haematite | D67: α-Fe₂O₃ | F67: iron(III) | G67: Fe<3+> | H67: Fe³⁺
B68: Hercynite | C68: Ferro-Spinell | D68: FeAl₂O₄ | F68: lactate | G68: lactH<1-> | H68: C₃H₅O₃⁻
B69: Hydrobiotite | C69: ‒ | D69: K(Mg,Fe⁺²)₆(Si,Al)₈O₂₀(OH)₄·nH₂O | F69: lanthanum | G69: La<3+> | H69: La³⁺
B70: Hydrotalcite | C70: ‒ | D70: Mg₆Al₂(CO₃)(OH)₁₆·4H₂O | F70: lead | G70: Pb<2+> | H70: Pb²⁺
B71: Hydroxylapatite | C71: Hydroxy Apatite | D71: Ca₅(PO₄)₃OH | F71: lithium | G71: Li<1+> | H71: Li⁺
B72: Illite | C72: ‒ | D72: K₀.₆Mg₀.₂₅Al₁.₈Al₀.₅Si₃.₅O₁₀(OH)₂ | F72: magnesium | G72: Mg<2+> | H72: Mg²⁺
B73: Imogolite | C73: Grunlingite | D73: Al₂SiO₃(OH)₄ | F73: malonate | G73: mal<2-> | H73: C₃H₂O₄²⁻
B74: Jadeite | C74: ‒ | D74: NaAlSi₂O₆ | F74: manganese(II) | G74: Mn<2+> | H74: Mn²⁺
B75: Kaolinite | C75: ‒ | D75: Al₂Si₂O₅(OH)₄ | F75: mellitate (Benzene-1,2,3,4,5,6-hexacarboxylic acid) | G75: mell<6-> | H75: C₁₂O₁₂⁶⁻
B76: Kyanite | C76: ‒ | D76: Al₂SiO₅ | F76: mercury | G76: Hg<2+> | H76: Hg²⁺
B77: Lepidocrocite | C77: Hydrohematite; Esmeraldite | D77: γ-FeOOH | F77: molybdate | G77: MoO4<2-> | H77: MoO₄²⁻
B78: l-MnO2 | C78: ‒ | D78: l-MnO₂ | F78: neodymium | G78: Nd<3+> | H78: Nd³⁺
B79: Mackinawite | C79: ‒ | D79: (Fe,Ni)S₀.₉ | F79: neptunium(III) | G79: Np<3+> | H79: Np³⁺
B80: Maghemite | C80: ‒ | D80: γ-Fe₂O₃ | F80: neptunium(IV) | G80: Np<4+> | H80: Np⁴⁺
B81: Magnesite | C81: ‒ | D81: MgCO₃ | F81: neptunyl(V) | G81: NpO2<1+> | H81: NpO₂⁺
B82: Magnetite | C82: ‒ | D82: Fe₃O₄ | F82: neptunyl(VI) | G82: NpO2<2+> | H82: NpO₂²⁺
B83: Manganite | C83: ‒ | D83: γ-MnOOH | F83: nickel | G83: Ni<2+> | H83: Ni²⁺
B84: Manganosite | C84: ‒ | D84: MnO | F84: niobium(V) hydroxyde | G84: Nb(OH)5<0> | H84: Nb(OH)₅
B85: Microcline | C85: Maximum Microcline | D85: KAlSi₃O₈ | F85: nitrate | G85: NO3<1-> | H85: NO₃⁻
B86: MnO2 (α-) | C86: ‒ | D86: α-MnO₂ | F86: nitrilotriacetate | G86: NTA<3-> | H86: N(CH₂COO)₃³⁻
B87: Monosulfate | C87: ‒ | D87: Ca₄Al₂O₆(SO₄)·14H₂O | F87: nitrite | G87: NO2<1-> | H87: NO₂⁻
B88: Monteponite | C88: ‒ | D88: CdO | F88: o-phenylendiamine | G88: OPDA<0> | H88: C₆H₄(NH₂)₂
B89: Montmorillonite | C89: ‒ | D89: Na₀.₃Mg₀.₃Al₁.₆₇Si₄O₁₀(OH)₂ | F89: o-phthalate | G89: phthal<2-> | H89: C₆H₄(COO)₂²⁻
B90: Mordenite | C90: Arduinite | D90: (Ca,Na₂,K₂)Al₂Si₁₀O₂₄·7H₂O | F90: oxalate | G90: ox<2-> | H90: C₂O₄²⁻
B91: Muscovite | C91: ‒ | D91: KAl₃Si₃O₁₀(OH)₂ | F91: palladium | G91: Pd<2+> | H91: Pd²⁺
B92: Nepheline | C92: ‒ | D92: KNa₃Al₄Si₄O₁₆ | F92: perchlorate | G92: ClO4<1-> | H92: ClO₄⁻
B93: Nontronite | C93: ‒ | D93: Na₀.₃Fe₂³⁺(Si,Al)₄O₁₀(OH)₂·4H₂O | F93: phenylphosphonate | G93: PPA<2-> | H93: C₆H₅PO₃²⁻
B94: OH-Topaz | C94: ‒ | D94: Al₂SiO₄(OH)₂ | F94: phosphate | G94: PO4<3-> | H94: PO₄³⁻
B95: Opal | C95: ‒ | D95: SiO₂·nH₂O | F95: picolinate | G95: pic<1-> | H95: C₅H₄NCOO⁻
B96: Orthoclase | C96: K-Feldspars | D96: KAlSi₃O₈ | F96: plutonium(III) | G96: Pu<3+> | H96: Pu³⁺
B97: Otavite | C97: ‒ | D97: CdCO₃ | F97: plutonium(IV) | G97: Pu<4+> | H97: Pu⁴⁺
B98: Palygorskite | C98: Attapulgite | D98: (Mg,Al)₂Si₄O₁₀(OH)·4H₂O | F98: plutonyl(V) | G98: PuO2<1+> | H98: PuO₂⁺
B99: Partridgeite | C99: Bixbyit | D99: (Mn³⁺,Fe³⁺)₂O₃ | F99: plutonyl(VI) | G99: PuO2<2+> | H99: PuO₂²⁺
B100: Periclase | C100: Magnesiumoxide | D100: MgO | F100: potassium | G100: K<1+> | H100: K⁺
B101: Perovskite | C101: ‒ | D101: CaTiO₃ | F101: promethium | G101: Pm<3+> | H101: Pm³⁺
B102: Phlogopite | C102: ‒ | D102: KMg₃Si₃AlO₁₀(OH)₂ | F102: protactinyl(V) | G102: PaO2<1+> | H102: PaO₂⁺
B103: Pyrite | C103: ‒ | D103: FeS₂ | F103: protocatechuate | G103: PCCA<3-> | H103: C₇H₃O₄³⁻
B104: Pyrolusite | C104: ‒ | D104: β-MnO₂ | F104: pyrocatechate violet | G104: PCV<4-> | H104: C₁₉H₇O₇S⁴⁻
B105: Pyrophyllite | C105: ‒ | D105: Al₂Si₄O₁₀(OH)₂ | F105: pyromellitate | G105: PMA<4-> | H105: C₁₀H₂(COO)₄⁴⁻
B106: Pyrrhotite | C106: ‒ | D106: Fe₇S₈ | F106: quinoline | G106: qui<0> | H106: C₉H₇N
B107: Quartz | C107: ‒ | D107: SiO₂ | F107: radium | G107: Ra<2+> | H107: Ra²⁺
B108: Ramsdellite | C108: ‒ | D108: γ-MnO₂ | F108: rubidium | G108: Rb<1+> | H108: Rb⁺
B109: Rectorite | C109: ‒ | D109: (Na,Ca)Al₄((Si,Al)₈O₂₀)(OH)₄·2H₂O | F109: salicylate | G109: sal<2-> | H109: C₇H₄O₃²⁻
B110: Rhodochrosite | C110: ‒ | D110: MnCO₃ | F110: samarium | G110: Sm<3+> | H110: Sm³⁺
B111: Romarchite | C111: ‒ | D111: SnO | F111: selenate | G111: SeO4<2-> | H111: SeO₄²⁻
B112: Rubicline | C112: Rubiklin | D112: (Rb,K)AlSi₃O₈ | F112: selenite | G112: SeO3<2-> | H112: SeO₃²⁻
B113: Rutile | C113: ‒ | D113: TiO₂ | F113: Silicic acid | G113: Si(OH)4<0> | H113: Si(OH)₄
B114: Saponite | C114: ‒ | D114: (Ca,Na)₀.₃(Mg,Fe²⁺)₃(Si,Al)₄O₁₀(OH)₂·4H₂O | F114: silver | G114: Ag<1+> | H114: Ag⁺
B115: Schwertmannite | C115: ‒ | D115: Fe₁₆O₁₆(OH)₁₂(SO₄)₂ | F115: sodium | G115: Na<1+> | H115: Na⁺
B116: Sepiolite | C116: Sea Foam | D116: Mg₄Si₆O₁₅(OH)₂·6H₂O | F116: strontium | G116: Sr<2+> | H116: Sr²⁺
B117: Siderite | C117: ‒ | D117: FeCO₃ | F117: sulfate | G117: SO4<2-> | H117: SO₄²⁻
B118: Silica amorph. | C118: Silica-gel | D118: SiO₂ | F118: sulfite | G118: SO3<2-> | H118: SO₃²⁻
B119: Sillimanite | C119: ‒ | D119: Al₂SiO₅ | F119: syringate | G119: syr<1-> | H119: C₉H₉O₅⁻
B120: Smectite | C120: ‒ | D120: Na₀.₆Ca₀.₃K₀.₁Al₆Si₆O₂₀(OH)₄·2H₂O | F120: technate | G120: TcO4<1-> | H120: TcO₄⁻
B121: Smithsonite | C121: Calamine, Galmei | D121: ZnCO₃ | F121: technetium(IV) | G121: TcO<2+> | H121: TcO²⁺
B122: Sphalerite | C122: ‒ | D122: ZnS | F122: tetramethylammonium | G122: TMA<1+> | H122: N(CH₃)₄⁺
B123: Spherocobaltite | C123: Cobaltocalcite | D123: CoCO₃ | F123: thallium | G123: Tl<1+> | H123: Tl⁺
B124: Spinel | C124: ‒ | D124: MgAl₂O₄ | F124: thiocyanate | G124: SCN<1-> | H124: SCN⁻
B125: Stevensite | C125: Cerolite, Jurupaite, Kerolite | D125: (Ca₀.₅,Na)₀.₃₃(Mg,Fe⁺²)₃Si₄O₁₀(OH)₂·nH₂O | F125: thiosulfate | G125: S2O3<2-> | H125: S₂O₃²⁻
B126: Strontianite | C126: ‒ | D126: SrCO₃ | F126: thorium | G126: Th<4+> | H126: Th⁴⁺
B127: Struvite | C127: ‒ | D127: (NH₄)MgPO₄·6H₂O | F127: tin(II) | G127: Sn<2+> | H127: Sn²⁺
B128: Talc | C128: ‒ | D128: Mg₃Si₄O₁₀(OH)₂ | F128: tin(IV) | G128: Sn<4+> | H128: Sn⁴⁺
B129: Tenorite | C129: Melaconite | D129: CuO | F129: trans-1,2-diaminocyclohexane tetraacetate | G129: CDTA<4-> | H129: C₁₄H₁₆N₂O₈
B130: Tephroite | C130: ‒ | D130: Mn₂SiO₄ | F130: trimellitat (benzene-1,2,4-tricarboxylic acid) | G130: trimel<3-> | H130: C₉H₃O₆³⁻
B131: Thorianite | C131: ‒ | D131: ThO₂ | F131: trimesiate (benzene-1,3,5-tricarboxylic acid) | G131: trimes<3-> | H131: C₉H₃O₆³⁻
B132: TiO₂ amorph. | C132: ‒ | D132: TiO₂ | F132: tri-n-butyltin(IV) cation | G132: TBT<1+> | H132: (C₄H₉)₃Sn⁺
B133: Todorokite | C133: ‒ | D133: (Mn⁺²,Ca,Mg)Mn⁺⁴₃O₇·H₂O | F133: tungstenate | G133: WO4<2-> | H133: WO₄²⁻
B134: Tremolite | C134: ‒ | D134: Ca₂Mg₅Si₈O₂₂(OH)₂ | F134: uranium(IV) | G134: U<4+> | H134: U⁴⁺
B135: Troilite | C135: ‒ | D135: FeS | F135: uranyl(VI) | G135: UO2<2+> | H135: UO₂²⁺
B136: Uraninite | C136: Pitchblende | D136: UO₂ | F136: vanadate | G136: VO4<3-> | H136: VO₄³⁻
B137: Vermiculite | C137: ‒ | D137: (Mg,Fe⁺²)₀.₆₇Al₂(Si₃.₃₃Al₀.₆₇)O₁₀(OH)₂ | F137: ytterbium | G137: Yb<3+> | H137: Yb³⁺
B138: Vernadite | C138: Manganese-Oxyhydroxide | D138: δ-MnO₂ | F138: yttrium | G138: Y<3+> | H138: Y³⁺
B139: Witherite | C139: ‒ | D139: BaCO₃ | F139: zinc | G139: Zn<2+> | H139: Zn²⁺
B140: Wollastonite | C140: ‒ | D140: Ca₃Si₃O₉ | F140: zirconium | G140: Zr<4+> | H140: Zr⁴⁺
B141: Wuestite | C141: ferrous oxide, iron(II) oxide | D141: FeO
B142: Zincite | C142: ‒ | D142: ZnO
B143: Zircon | C143: ‒ | D143: ZrSiO₄
B144: Zirconium diphosphate | C144: ‒ | D144: ZrP₂O₇
B145: Zirconium oxophosphate | C145: ‒ | D145: Zr₂O(PO₄)₂
